Cogmind - Beta 13 @@@ ROGUE MODE // 2024.05.11 @ 15:09:33 Player: RedEssence Result: Destroyed by S-27 Virus with Autogun Performance ------------- Evolutions (5) 2500 Regions Visited (6) 1200 Robots Destroyed (147) 735 Value Destroyed (5573) 5573 Prototype IDs (10) 200 Alien Tech Used (0) 0 Bonus (237) 237 TOTAL SCORE: 10445 Bonus ------- High Alert Combat Kills 237 Cogmind --------- Core Integrity 0/1000 Matter 202/300 Energy 100/100 System Corruption 13% Temperature Cool (0) Movement Core (50) Location -5/Factory Parts ------- > --- POWER (2) -------- (None) > --- PROPULSION (5) --- (None) > --- UTILITY (7) ------ Visual Processing Unit Terrain Scan Processor > --- WEAPON (3) ------- (None) > --- INVENTORY (5) ---- Advanced Visual Processing Unit Core Analyzer Core Analyzer Peak State ------------ > --- POWER ------------ Light Nuclear Core Light Angular Momentum Engine > --- PROPULSION ------- Carbon-fiber Leg Carbon-fiber Leg Titanium Leg Titanium Leg Flexi-carbon Leg > --- UTILITY ---------- Huge Storage Unit Structural Scanner Visual Processing Unit Improved Terrain Scanner Terrain Scan Processor Target Analyzer Precision Matter Filter > --- WEAPON ----------- KE Penetrator Gauss Cannon Enhanced Gauss Cannon > --- INVENTORY -------- Micro Nuclear Core Micro Nuclear Core Neutrino Core Armored Medium Treads Armored Medium Treads Improved Cryofiber Web Advanced Energy Well Advanced Visual Processing Unit Advanced Terrain Scan Processor Improved Particle Charger Improved Medium Armor Plating Layered Light Armor Plating Shield Generator Improved Shield Generator Advanced Drone Bay Improved Arc Projector Wave Gun Long-range Proton Cannon Improved Concussive RPG Improved Concussive RPG Improved Remote Datajack [Rating: 71] Favorites ----------- Power Cooled Ion Engine Engine Cooled Ion Engine Power Core Light Nuclear Core Propulsion Light Treads Treads Light Treads Leg Carbon-fiber Leg Wheel Wheel Hover Unit Gravmag System Utility Huge Storage Unit Device Improved Heat Sink Storage Huge Storage Unit Processor Signal Interpreter Hackware Hacking Suite Protection Light Armor Plating Weapon Enhanced Autogun Energy Gun Small Laser Energy Cannon Cooled Particle Cannon Ballistic Gun Enhanced Autogun Ballistic Cannon Gauss Cannon Launcher Mini Grenade Launcher Special Weapon Remote Datajack Build | -11 -10 -9 -8 -7 -6 -5 ------- Run | Yrd Mat Mat Mat Fac Fac Fac Slots Evolved 10 | . . 2 2 2 2 2 Power 1 | . . . . 1 . . Propulsion 3 | . . 1 1 . . 1 Utility 5 | . . 1 1 1 1 1 Weapon 1 | . . . . . 1 . Parts Attached 138 | 6 9 19 20 37 22 25 Power 18 | 1 1 2 2 6 3 3 Engine 10 | 1 1 2 2 2 2 . Core 8 | . . . . 4 1 3 Reactor . | . . . . . . . Propulsion 43 | 2 2 5 10 12 5 7 Treads 23 | 2 . 4 10 4 . 3 Leg 17 | . 2 1 . 5 5 4 Wheel 1 | . . . . 1 . . Hover 2 | . . . . 2 . . Flight . | . . . . . . . Utility 37 | 1 4 6 4 10 6 6 Device 16 | . . 2 4 3 3 4 Storage 9 | 1 3 1 . 2 . 2 Processor 7 | . 1 . . 4 2 . Hackware 2 | . . . . 1 1 . Protection 3 | . . 3 . . . . Artifact . | . . . . . . . Weapon 40 | 2 2 6 4 9 8 9 Energy Gun 12 | . 1 5 1 2 1 2 Energy Cannon 5 | . . . 1 1 1 2 Ballistic Gun 11 | 2 . 1 1 4 2 1 Ballistic Cannon 2 | . . . . . 1 1 Launcher 8 | . 1 . 1 2 2 2 Special Weapon 2 | . . . . . 1 1 Impact Weapon . | . . . . . . . Slashing Weapon . | . . . . . . . Piercing Weapon . | . . . . . . . Special Melee Weapon . | . . . . . . . Unidentified Prototypes 10 | . . 2 1 5 . 2 Parts Lost 84 | . 5 7 13 21 16 22 Power 15 | . 1 . 2 5 2 5 Propulsion 32 | . 2 3 7 9 4 7 Utility 15 | . . 2 2 3 4 4 Weapon 22 | . 2 2 2 4 6 6 Highest Loss Streak 13 | . 2 3 5 6 12 13 To Critical Strikes . | . . . . . . . Average Slot Usage (%) 91 | . 89 94 97 87 88 90 Engine 8 | . 13 11 8 8 5 4 Core 2 | . . . . 3 5 4 Treads 17 | . 25 13 34 19 . 2 Leg 8 | . 2 15 . 1 24 21 Device 7 | . . . 15 6 6 15 Storage 8 | . 20 11 9 6 6 5 Processor 13 | . 3 11 9 17 16 16 Hackware 2 | . . . . 4 6 . Protection 2 | . . 10 1 . . . Energy Gun 7 | . 7 18 10 2 2 . Energy Cannon 1 | . . . 3 1 2 . Ballistic Gun 3 | . 13 . . 7 1 3 Launcher 2 | . 2 3 4 1 2 . Naked Turns . | . . . . . . . Heaviest Build 122 | 12 87 95 99 110 119 122 Greatest Support 96 | 40 40 63 86 96 60 84 Greatest Overweight (x) 36 | . 6 29 2 6 2 36 Average Overweight (x) 1 | . . 1 1 1 1 . Largest Inventory Capacity 25 | 8 25 25 25 25 25 25 Average Capacity 22 | 6 10 22 25 23 25 23 Most Carried 25 | 6 8 24 25 25 20 24 Average Carried 17 | 3 5 15 23 19 13 14 Final Capacity 25 | 8 10 25 25 25 25 5 Final Carried 24 | 6 5 24 23 19 10 3 Class Distribution -------------------- 48% | Mutant 31% | Scavenger-Mutant 17% | Scavenger-Skirmisher Dominant Class ---------------- Mutant | -10/Materials Mutant | -9/Materials Scavenger-Mutant | -8/Materials Mutant | -7/Factory Scavenger-Skirmisher | -6/Factory Scavenger-Skirmisher | -5/Factory Resources | -11 -10 -9 -8 -7 -6 -5 ----------- Run | Yrd Mat Mat Mat Fac Fac Fac Matter Collected 3358 | 260 296 838 269 783 432 480 Remotely . | . . . . . . . Salvage Created 5303 | . 387 1012 1317 1458 432 697 Parts 268 | . 17 53 72 78 21 27 Haulers Intercepted 3 | . . 1 2 . . . Recyclers Shooed 6 | . . . . 3 . 3 Parts Field Recycled . | . . . . . . . Retrieved Matter . | . . . . . . . Parts Self-Destructed . | . . . . . . . Prevented . | . . . . . . . Kills | -11 -10 -9 -8 -7 -6 -5 ------- Run | Yrd Mat Mat Mat Fac Fac Fac Combat Hostiles Destroyed 112 | . 11 22 27 29 9 14 Guns 60 | . 10 17 11 13 5 4 Cannons 27 | . . . 5 11 1 10 AOE 22 | . 1 5 9 5 2 . Classes Destroyed 15 | . 3 5 3 4 . . Worker 10 | . . 2 3 4 . 1 Builder 9 | . . 1 2 2 2 2 Hauler 3 | . . 1 2 . . . Recycler 6 | . . . 1 5 . . Watcher 7 | . 1 3 3 . . . Swarmer 21 | . 3 4 . 10 . 4 Grunt 50 | . 8 11 21 4 3 3 Brawler 1 | . . 1 . . . . Duelist 2 | . . . 2 . . . Protector 1 | . . . . 1 . . Sentry 12 | . . 6 3 1 . 2 Specialist 4 | . . . . 2 2 . Hunter 8 | . . . 1 3 2 2 Programmer 11 | . . . . 7 1 3 Heavy 2 | . . . . 1 1 . Best Kill Streak 11 | . 5 6 11 5 5 6 Combat Bots Only 7 | . 5 4 7 5 3 4 Max Kills in Single Turn 5 | . 1 5 3 2 2 2 Gunslinging . | . . . . . . . Exploded 4 | . 1 4 2 2 2 . Melee . | . . . . . . . Uniques/NPCs Destroyed . | . . . . . . . Combat | -11 -10 -9 -8 -7 -6 -5 -------- Run | Yrd Mat Mat Mat Fac Fac Fac Hostile Shots Fired 1097 | . 96 116 195 284 118 288 Missed 335 | . 30 37 50 96 37 85 Damage Taken 12499 | . 822 1074 2256 2726 1761 3860 Core 2618 | . 181 212 302 613 301 1009 Absorbed by Shields 83 | . . . . . 16 67 Redirected to Shielding 102 | . . 102 . . . . Regen/Repaired (Parts) 383 | . . 113 123 . 79 68 Core Remaining (%) 49 | 100 27 47 45 12 64 . Volleys Fired 476 | . 56 93 100 123 48 56 Largest 3 | . 2 2 2 2 3 3 Hottest 162 | . 80 96 124 105 149 162 Shots Fired 815 | . 91 160 176 208 84 96 Gun 597 | . 90 153 101 158 46 49 Cannon 174 | . . . 59 38 32 45 Launcher 44 | . 1 7 16 12 6 2 Special . | . . . . . . . Kinetic 310 | . 71 . . 139 45 55 Thermal 431 | . 19 153 160 57 17 25 Explosive 44 | . 1 7 16 12 6 2 Electromagnetic 30 | . . . . . 16 14 Robot Hit Streak 15 | . 11 14 15 13 9 7 Robot Miss Streak 6 | . 3 4 4 6 5 3 Penetration Max 1 | . . . . . . 1 Secondary Targets 2 | . . 2 . . . . Max Gunslinging Chain 1 | . . 1 . . . . Shots Hit Robots 522 | . 63 100 119 126 58 56 Core Hits 305 | . 25 50 81 75 40 34 Critical Kills 1 | . . . . 1 . . Critical Parts Destroyed 1 | . . . . 1 . . Critical Strikes 16 | . . 3 4 2 . 7 Burn 7 | . . 3 4 . . . Destroy 2 | . . . . 2 . . Blast 6 | . . . . . . 6 Corrupt 1 | . . . . . . 1 Melee Attacks . | . . . . . . . Impact . | . . . . . . . Slashing . | . . . . . . . Piercing . | . . . . . . . Sneak Attacks . | . . . . . . . Combat Hostiles . | . . . . . . . Follow-up Attacks . | . . . . . . . Damage Inflicted 13406 | . 691 1475 3628 3942 1586 2084 Guns 6083 | . 556 1212 1090 1799 630 796 Cannons 3319 | . . . 952 822 504 1041 Explosions 3983 | . 135 260 1580 1321 440 247 Melee . | . . . . . . . Ramming 21 | . . 3 6 . 12 . Kinetic 3317 | . 379 . . 1493 528 917 Thermal 5344 | . 177 1212 2042 1128 308 477 Explosive 3953 | . 105 260 1580 1321 440 247 Electromagnetic 728 | . 30 . . . 298 400 Impact 43 | . . . . . . 43 Slashing . | . . . . . . . Piercing . | . . . . . . . Highest Corruption 13 | . 2 . . 8 1 13 Average Corruption 4 | . 2 . . 4 1 5 Corruption Purged . | . . . . . . . Corruption Blocked 20 | . . . . 20 . . Effects 72 | . 2 . . 55 . 15 Message Errors 15 | . . . . 14 . 1 Matter Fused 19 | . . . . 14 . 5 Heat Flow Errors 7 | . . . . 5 . 2 Energy Discharges 5 | . 1 . . 4 . . Data Loss (minor) 11 | . 1 . . 8 . 2 Data Loss (major) 2 | . . . . 1 . 1 Misfires 8 | . . . . 7 . 1 Alerts 1 | . . . . . . 1 Weapon Failures 4 | . . . . 2 . 2 Overload Shots . | . . . . . . . Overflow Damage 306 | . 29 6 20 135 88 28 Projectiles 58 | . . . 5 21 26 6 Explosions 248 | . 29 6 15 114 62 22 Melee . | . . . . . . . Knockbacks 6 | . . . . . 2 4 Impact . | . . . . . . . Kinetic 6 | . . . . . 2 4 Secondary . | . . . . . . . Self-Inflicted Damage 358 | . 82 . 116 25 80 55 Shots 11 | . 2 . 4 1 2 2 Rammed 2 | . . . 2 . . . Targets Rammed 4 | . . 1 2 . 1 . Kicked 2 | . . 1 . . 1 . Crushed . | . . . . . . . Highest Temperature 703 | . 126 335 110 411 469 703 Average Temperature 109 | . 36 77 31 94 187 236 Received Heat Transfer 2835 | . 318 468 1107 201 333 408 Effects 28 | . . 4 . 1 4 19 Shutdowns 10 | . . . . 1 3 6 Energy Bleed 2 | . . . . . . 2 Interference 8 | . . 4 . . . 4 Short Circuit 4 | . . . . . 1 3 Damage (major) 3 | . . . . . . 3 Damage (core) 1 | . . . . . . 1 Siege Activations . | . . . . . . . Robots Corrupted . | . . . . . . . Combat Hostiles . | . . . . . . . Parts Fried 3 | . . . . . 2 1 Impact Corruptions . | . . . . . . . Robots Melted 3 | . . . 2 . 1 . Combat Hostiles 3 | . . . 2 . 1 . Parts Melted 28 | . . 10 11 6 . 1 Heat Transferred 11167 | . 518 3237 4566 1443 700 703 Parts Sabotaged . | . . . . . . . Parts Stolen . | . . . . . . . Parts Stripped . | . . . . . . . Power Chain Reactions . | . . . . . . . Alert | -11 -10 -9 -8 -7 -6 -5 ------- Run | Yrd Mat Mat Mat Fac Fac Fac Peak Influence 718 | . 269 274 718 502 377 208 Initial 261 | . . 63 23 261 245 80 Average 205 | . 110 102 350 240 236 92 Maximum Alert Level 3 | . 1 1 3 2 1 1 Low Security (%) 60 | 100 84 85 42 44 31 98 Level 1 27 | . 15 14 6 47 68 1 Level 2 11 | . . . 46 8 . . Level 3 . | . . . 3 . . . Level 4 . | . . . . . . . Level 5 . | . . . . . . . High Security . | . . . . . . . Max Security . | . . . . . . . Squads Dispatched 32 | . 1 2 7 12 6 4 Investigation 7 | . 1 . 2 2 2 . Extermination 10 | . . . . 7 1 2 Reinforcement 14 | . . 2 4 3 3 2 Assault 1 | . . . 1 . . . Garrison . | . . . . . . . Intercept . | . . . . . . . Searches Triggered . | . . . . . . . Construction Impeded 5 | . . . 2 . 1 2 Haulers Reinforced 1 | . . . . 1 . . Active Scanning Responses . | . . . . . . . Cargo Convoy Interrupts 1 | . . . . 1 . . Stealth | -11 -10 -9 -8 -7 -6 -5 --------- Run | Yrd Mat Mat Mat Fac Fac Fac Distress Signals 19 | . 2 5 3 3 3 3 Communications Jammed . | . . . . . . . Distress Signals . | . . . . . . . Times Spotted 208 | . 15 36 51 47 17 42 Peak Tracking Total 15 | . 3 5 7 7 5 15 Tactical Retreats 14 | . 1 1 8 . 3 1 Traps | -11 -10 -9 -8 -7 -6 -5 ------- Run | Yrd Mat Mat Mat Fac Fac Fac Traps Triggered 3 | . 1 . 1 1 . . Indirectly . | . . . . . . . Trap Hack Attempts . | . . . . . . . Triggered . | . . . . . . . Disarmed . | . . . . . . . Reprogrammed . | . . . . . . . Reused . | . . . . . . . Traps Extracted . | . . . . . . . Installed . | . . . . . . . Triggered 2 | . . . . 2 . . Machines | -11 -10 -9 -8 -7 -6 -5 ---------- Run | Yrd Mat Mat Mat Fac Fac Fac Machines Disabled 29 | . 3 1 3 17 3 2 Max in Single Turn 9 | . 2 1 1 9 1 1 Garrison Access 1 | . . . 1 . . . Machines Repaired . | . . . . . . . Machines Dismantled . | . . . . . . . Machines Sabotaged . | . . . . . . . Overloaded Fab Kills . | . . . . . . . Hacking | -11 -10 -9 -8 -7 -6 -5 --------- Run | Yrd Mat Mat Mat Fac Fac Fac Machines Accessed 24 | . 6 4 4 5 2 3 Terminals 15 | . 4 3 2 3 1 2 Fabricators . | . . . . . . . Repair Stations 4 | . . 1 1 . 1 1 Recycling Units 5 | . 2 . 1 2 . . Scanalyzers . | . . . . . . . Garrison Access . | . . . . . . . Total Hacks 75 | . 20 18 14 12 7 4 Successful 50 | . 15 12 9 6 4 4 Failed 25 | . 5 6 5 6 3 . Catastrophic 6 | . 1 1 1 1 2 . Database Lockouts . | . . . . . . . Manual 24 | . 6 10 4 1 3 . Terminals 47 | . 14 14 7 7 3 2 Fabricators . | . . . . . . . Repair Stations 15 | . . 4 5 . 4 2 Recycling Units 13 | . 6 . 2 5 . . Scanalyzers . | . . . . . . . Garrison Access . | . . . . . . . Terminal Hacks 27 | . 11 8 3 3 . 2 Record 5 | . . . 2 2 . 1 Recycling Unit Index 1 | . . 1 . . . . Alert Level 4 | . 2 2 . . . . Unreport Threat 2 | . . 1 . 1 . . Locate Traps 4 | . 1 1 1 . . 1 Patrol Status 1 | . 1 . . . . . Investigation Status 2 | . 2 . . . . . Reinforcement Status 3 | . 2 1 . . . . Recall Reinforcements 1 | . 1 . . . . . Zone Layout 4 | . 2 2 . . . . Fabricator Hacks . | . . . . . . . Repair Station Hacks 14 | . . 4 4 . 4 2 Scan Component 7 | . . 2 2 . 2 1 Repair 7 | . . 2 2 . 2 1 Recycling Unit Hacks 9 | . 4 . 2 3 . . Report Inventory 4 | . 2 . 1 1 . . Retrieve Components 5 | . 2 . 1 2 . . Scanalyzer . | . . . . . . . Garrison Access Hacks . | . . . . . . . Unauthorized Hacks . | . . . . . . . Terminals . | . . . . . . . Fabricators . | . . . . . . . Repair Stations . | . . . . . . . Recycling Units . | . . . . . . . Scanalyzers . | . . . . . . . Garrison Access . | . . . . . . . Data Cores Recovered . | . . . . . . . Used . | . . . . . . . Hacking Detections 20 | . 5 4 4 4 2 1 Full Trace Events 5 | . 2 . 1 . 2 . Feedback Events . | . . . . . . . Feedback Blocked . | . . . . . . . Robot Schematics Acquired . | . . . . . . . Robots Built . | . . . . . . . Authchips . | . . . . . . . Time . | . . . . . . . Total Robot Build Rating . | . . . . . . . Part Schematics Acquired . | . . . . . . . Parts Built . | . . . . . . . Authchips . | . . . . . . . Time . | . . . . . . . Total Part Build Rating . | . . . . . . . Parts Repaired 7 | . . 2 2 . 2 1 Time 255 | . . 64 64 . 108 19 Parts Recycled . | . . . . . . . Recycled Matter . | . . . . . . . Retrieved Matter . | . . . . . . . Retrieved Components 33 | . 3 . 10 20 . . Parts Scanalyzed . | . . . . . . . Part Schematics Acquired . | . . . . . . . Parts Damaged . | . . . . . . . Bothacking | -11 -10 -9 -8 -7 -6 -5 ------------ Run | Yrd Mat Mat Mat Fac Fac Fac Used RIF Installer . | . . . . . . . Robots Hacked . | . . . . . . . Non-combat . | . . . . . . . Combat . | . . . . . . . Robot Hacks Applied . | . . . . . . . Relay Couplers Released 3 | . . . 3 . . . Machine Destruction 3 | . . . 3 . . . Fabnet Peak Effective % . | . . . . . . . Robots Rewired . | . . . . . . . Allies Hacked . | . . . . . . . Hacks Repelled . | . . . . . . . Allies | -11 -10 -9 -8 -7 -6 -5 -------- Run | Yrd Mat Mat Mat Fac Fac Fac Total Allies . | . . . . . . . Largest Group . | . . . . . . . Highest-Rated Group . | . . . . . . . Highest-Rated Ally . | . . . . . . . Total Orders . | . . . . . . . Ally Attacks . | . . . . . . . Total Damage . | . . . . . . . Kills . | . . . . . . . Allies Corrupted . | . . . . . . . Allies Melted . | . . . . . . . Intel | -11 -10 -9 -8 -7 -6 -5 ------- Run | Yrd Mat Mat Mat Fac Fac Fac Robot Analysis Total . | . . . . . . . Derelict Logs Recovered . | . . . . . . . Drone Launches 2 | . . . . . . 2 Drone Recoveries 2 | . . . . . . 2 Exploration | -11 -10 -9 -8 -7 -6 -5 ------------- Run | Yrd Mat Mat Mat Fac Fac Fac Turns Passed 10999 | 114 583 2195 2057 3670 1029 1351 Spaces Moved 4039 | 64 269 599 667 1469 398 573 Core 170 | 2 1 3 . 70 . 94 Treads 2379 | 62 222 285 667 1143 . . Legs 1292 | . 46 311 . 58 398 479 Wheels . | . . . . . . . Hover 198 | . . . . 198 . . Flight . | . . . . . . . Fastest Speed 50 | 50 120 120 240 56 190 50 Average Speed 218 | 156 155 277 240 220 197 175 Slowest Speed 1850 | 160 350 1500 320 540 260 1850 Overloaded Moves . | . . . . . . . Propulsion Burnouts . | . . . . . . . Robots Hopped . | . . . . . . . Cave-ins Triggered . | . . . . . . . Exploration Rate (%) 26 | 5 39 44 43 34 8 14 Regions Visited 6 Branch Regions . Pre-discovered Areas . | . . . . . . . Known Exits Taken 4 | . 1 1 1 1 . . Unknown Exits Taken 2 | 1 . . . . 1 . Scrap Searched . | . . . . . . . Spaces Dug . | . . . . . . . Terrain Destroyed 356 | . 6 47 85 143 39 36 Melee . | . . . . . . . Projectile 32 | . . . 2 7 6 17 AOE 324 | . 6 47 83 136 33 19 Terrain Rammed . | . . . . . . . Walls Destroyed . | . . . . . . . Machines Disabled . | . . . . . . . Actions | -11 -10 -9 -8 -7 -6 -5 --------- Run | Yrd Mat Mat Mat Fac Fac Fac Total 5506 | 75 358 972 954 1750 557 840 Wait 626 | . 15 215 125 43 73 155 Move 4033 | 63 268 598 666 1468 397 573 Hop . | . . . . . . . Pick Up 149 | 6 6 33 27 48 12 17 Fast Attach 40 | 6 2 7 2 17 2 4 Attach 92 | . 5 10 17 19 20 21 Detach 19 | . 1 3 1 5 2 7 Swap 6 | . 2 2 1 1 . . Drop 61 | . 3 10 13 26 2 7 Fire 476 | . 56 93 100 123 48 56 Melee . | . . . . . . . Ram . | . . . . . . . Kick 2 | . . 1 . . 1 . Crush 2 | . . . 2 . . . Escape Stasis . | . . . . . . . Rewire . | . . . . . . . Trap . | . . . . . . . Miscellaneous . | . . . . . . . Route ------- -11/Scrapyard -10/Materials (discovered 3 exits: *Mat / *Min x2) -9/Materials (discovered 3 exits: *Mat x2 / *Min) -8/Materials -7/Factory (discovered 3 exits: *Fac / *Low x2) -6/Factory -5/Factory History --------- Turn | Location | Event 12 | -11/Scrapyard | Discovered new exit (range 13) 115 | -11/Scrapyard | Entered Materials 217 | -10/Materials | Discovered new exit (range 12) 305 | -10/Materials | Build established: Mutant 424 | -10/Materials | Core integrity fell below 50% 560 | -10/Materials | Discovered new exit (range 9) 574 | -10/Materials | Identified exit to Mines 683 | -10/Materials | Discovered new exit (range 8) 690 | -10/Materials | Identified exit to Materials 698 | -10/Materials | Entered another Materials area 698 | -9/Materials | Evolved 2 slots: Propulsion x1, Utility x1 1431 | -9/Materials | Discovered new exit (range 6) 1447 | -9/Materials | Identified exit to Materials 1930 | -9/Materials | Lost 3 parts (2n1u) 2252 | -9/Materials | Build established: Scavenger-Mutant 2437 | -9/Materials | Discovered new exit (range 12) 2448 | -9/Materials | Core integrity fell below 50% 2538 | -9/Materials | Identified exit to Mines 2708 | -9/Materials | Discovered exit to Materials (range 16) 2808 | -9/Materials | Repaired Imp. Treads 2841 | -9/Materials | Repaired Beam Rifle 2893 | -9/Materials | Entered another Materials area 2893 | -8/Materials | Evolved 2 slots: Propulsion x1, Utility x1 3330 | -8/Materials | Lost 5 parts (1p2n1u1w) 3752 | -8/Materials | Repaired Lgt. Treads 3791 | -8/Materials | Repaired Imp. Heat Sink 3958 | -8/Materials | Destroyed 7 combat bots 4003 | -8/Materials | Core integrity fell below 50% 4219 | -8/Materials | Build established: Mutant 4549 | -8/Materials | Discovered new exit (range 9) 4566 | -8/Materials | Identified exit to Factory 4704 | -8/Materials | Build established: Scavenger-Mutant 4950 | -8/Materials | Entered Factory 4950 | -7/Factory | Evolved 2 slots: Power x1, Utility x1 5763 | -7/Factory | Lost 6 parts (1p3n1u1w) 6002 | -7/Factory | Build established: Mutant 6119 | -7/Factory | Lost 3 parts (1p1n1u) 6237 | -7/Factory | Discovered new exit (range 11) 6272 | -7/Factory | Core integrity fell below 50% 6428 | -7/Factory | Discovered new exit (range 14) 6522 | -7/Factory | Identified exit to Lower Caves 6695 | -7/Factory | Cargo convoy interrupted 7730 | -7/Factory | Found Prototype Launcher 8574 | -7/Factory | Discovered new exit (range 14) 8575 | -7/Factory | Identified Rocket Array 8583 | -7/Factory | Core integrity fell below 20% 8613 | -7/Factory | Lost 5 parts (2p2n1w) 8618 | -7/Factory | Identified exit to Factory 8620 | -7/Factory | Entered another Factory area 8620 | -6/Factory | Evolved 2 slots: Utility x1, Weapon x1 8711 | -6/Factory | Repaired Rocket Array 8795 | -6/Factory | Repaired Lgt. Nuclear Core? 9017 | -6/Factory | Discovered new exit (range 15) 9048 | -6/Factory | Build established: Scavenger-Skirmisher 9055 | -6/Factory | Lost 4 parts (1p1n2w) 9207 | -6/Factory | Lost 12 parts (1p3n4u4w) 9649 | -6/Factory | Entered another Factory area 9649 | -5/Factory | Evolved 2 slots: Propulsion x1, Utility x1 10088 | -5/Factory | Repaired Carbon-fiber Leg 10636 | -5/Factory | Lost 3 parts (1p1u1w) 10898 | -5/Factory | Lost 13 parts (2p5n2u4w) 10909 | -5/Factory | Core integrity fell below 50% 10934 | -5/Factory | System corruption reached 10% 10965 | -5/Factory | Core integrity fell below 20% 10972 | -5/Factory | Lost 3 parts (2p1w) 11000 | -5/Factory | Destroyed by S-27 Virus with Autogun Last Messages --------------- U-05 Engineer lays Concrete. M-28 Smith repairs P-70 Sage. K-01 Serf collects debris. U-05 Engineer lays Concrete. Mic. Nuclear Core destroyed. Dropped Adv. Energy Well. K-01 Serf collects debris. R-10 Processor collects Imp. Remote Datajack. U-05 Engineer lays Concrete. R-10 Processor collects Broken Arm. Medium Treads. System corrupted: Component data lost. M-28 Smith repairs Com. Wheel. P-70 Sage resets P-70 Sage, system corruption cleaned. W-25 Informer sends out distress signal. System corrupted: IFF burst signal emitted. Construction Platform disabled. System corrupted: Substantial component data lost. Advanced Drone released from Adv. Drone Bay. Advanced Drone retrieved by Adv. Drone Bay. Adv. Drone Bay destroyed. Map ----- +----------------------------------------------------+ | ####????####???????????????????????? | | ###### !### ###?####?#?????????????????????????? | | ####### #### ##?#??#?#??????????????????????????? | | ###?### #### #####?#?#???#??????????????????????? | | ####### #### ######?#??#????????????????????????? | | #######+#### ##########?????#???????????????????? | | = ## ###??#?#?#???????????????????????? | | """" ## ####?##??#???????????????????????? | | """" + T ######?#??#??#???????????????????? | | """" ## # ??#???????????????????????? | | """" ## # ?? ??#?#????????????????????? | | """" ### ## """"""??##??#??????????????????? | | """" ### ## """"""?#???????????????????????? | | """" ### ## """""" #???????????????????????? | | ### ## """""" #?#?#???????????????????? | | ####+###### ## ??##?????????????????????? | | ^ # """""" #???????????????????????? | | # """""" ##???#??????????????????? | | + """""" ##?#????????????????????? | | # """""" ########????????????????? | | # # #????????????????? | | ###+########### """""" # #????????????????? | | # ## """""" # #????????????????? | | # """""" ## """""" # s #????????????????? | | # """""" ## """""" # sssss#??????"?????????? | | #= """""" ## #@ssp # ??"???"????????? | | # """""" ## #####s## ???? ?"?"? ????? | | # #####+######?## #? "?????"????#???? | | #######+########### ######### #? ????? ?????????? | | ## ########### ######### #? ?"?????""??????? | | """ /## ########### ######### ## ???" ???? ?????? | | """ ## ########### ######### ## ""?????""????#?? | | """ ##!###########+######### ## "????"?????????? | | ## ######## * # ## ? ???? ???????? | | "" + !######## # ## ??#??? | | "F"" ########### """" """" # ######+#+#####????? | | """" #######?### """"""""" # ###????# | | #######??## """" """" # ##?#???? | | # ##+########### """"""""" + ##?????# | | #### ########### """" """" # ##??#??? | | #### ##?###?#### """" """" + ##??#?## | | #### ########### """"="""" ######## ##??#??# | | #### ##?########[ [ ######## ##??#??? | | #### ########### == ##?##### ###????# | | #### ########?## * #####?## ##?????? | | ###?##?#############+########## ##?#???? | | ########?###?############ ####?##?## ###?#??? | | ##############?#?##?#?#######?###?## ##????## | | #######?####?#####??? ######## ####???# | | ####?####?####??### """ """ ######## ####???? | +----------------------------------------------------+ Best States ------------- Heat Dissipation 51 Energy Generation 29 Energy Capacity 865 Matter Stores 450 Matter Capacity 450 Sight Range 18 Robot Scan Range 14 Terrain Scan Range 16 Terrain Scan Density 210 Base Temperature (-) 150 Armor Coverage 150 Weapon Shielding 66 Evasion (%) 55 Target Analysis 5 Recoil Reduction 4 Matter Filtering 50 Particle Charging 15 Offensive Hacking 22 Item Schematics ----------------- None Robot Schematics ------------------ None Fabricated ------------ Nothing Alien Tech Used ----------------- None Achievements -------------- Hey, That's Mine! Let's See Who's Tougher root@ Challenges ------------ None Game ------ Seed DiametricHeavyArchive Manual? 0 Play Time 01:41:16 Cumulative 16.1 hours Start 2024.05.06 @ 17:10:29 End 2024.05.11 @ 15:09:33 Sessions 5 Manual Loads 0 Difficulty Rogue Special Mode None Game No. 13 Rogue 13 Adventurer 0 Explorer 0 Win Type - Total 0 Types 0/0/0/0/0/0/0/0/0 Lore% 4 Gallery% 19 Achievement% 14 Wizard Run 0 Options --------- Layout 0 ASCII 0 Keyboard 0 Movement Arrows Keybinds 0 Fullscreen 1 Font 24/Smallcaps Map View 76x50 Zoom Use 0% Tactical HUD 0 Map Filters NONE Filters NONE Steam 1 RUN: 62c9c5c1-6e7c-4751-a81c-9cc5cc2b7161